lending/lending_fUSD_20241211
["ID","MTS","AMOUNT","RATE_DAILY","PERIOD"]
[345023508,1733934638246,-390.01550984,0.0001,2]
[345023509,1733934638308,-754.75871328,0.0001,2]
[345023510,1733934638600,-17956.00910768,0.0001,2]
[345023511,1733934638616,-3563.63894379,0.0001,2]
[345023512,1733934638626,-1000.0,0.00010014,2]
[345023513,1733934638635,-166.2,0.00010039,2]
[345023514,1733934638645,-682.29,0.00010137,2]
[345023516,1733934638655,-166.77,0.00010244,2]
[345023517,1733934638664,-1561.55,0.00010302,2]
[345023519,1733934638673,-624.89,0.00010357,2]
[345023521,1733934638682,-150.932615,0.00010434,2]
[345023523,1733934638692,-1352.18,0.00010468,2]
[345023526,1733934638701,-653.809,0.0001055,2]
[345023527,1733934638710,-1415.27637645,0.0001067,2]
[345023668,1733934640204,-146.27362355,0.0001067,2]
[345023670,1733934640214,-1456.95,0.000107,2]
[345023672,1733934640224,-200.0,0.00010702,2]
[345023673,1733934640234,-575.11,0.00010722,2]
[345023675,1733934640243,-150.0,0.00010779,2]
[345023677,1733934640252,-420.0,0.00010796,2]
[345023679,1733934640265,-1963.0,0.000108,2]
[345023681,1733934640275,-200.8903,0.000108,2]
[345023683,1733934640284,-6062.302,0.00010858,2]
[345023685,1733934640293,-37849.45685357,0.000109,2]
[345023686,1733934640303,-180.62145904,0.000109,2]
[345023688,1733934640314,-180.62145903,0.000109,2]
[345023690,1733934640323,-180.62145903,0.000109,2]
[345023692,1733934640332,-180.62145903,0.000109,2]
[345023694,1733934640342,-180.62145903,0.000109,2]
[345023696,1733934640351,-180.62145903,0.000109,2]
[345023697,1733934640360,-180.62145903,0.000109,2]
[345023699,1733934640370,-180.62145903,0.000109,2]
[345023701,1733934640380,-180.62145903,0.000109,2]
[345023703,1733934640389,-180.62145903,0.000109,2]
[345023705,1733934640399,-180.62145903,0.00010905,2]
[345023707,1733934640408,-5000.0,0.00010913,2]
[345023708,1733934640418,-158.63133302,0.00010913,2]
[345023710,1733934640427,-180.62145903,0.00010916,2]
[345023712,1733934640439,-513.0,0.0001092,2]
[345023714,1733934640449,-180.62145903,0.00010926,2]
[345023716,1733934640458,-1410.84796072,0.00010932,2]
[345023718,1733934640467,-117450.31021219,0.00010934,2]
[345023719,1733934640476,-180.62145903,0.00010937,2]
[345023720,1733934640485,-153.0,0.00010941,2]
[345023721,1733934640495,-237.03270975,0.00010946,2]
[345023722,1733934640506,-237.03270975,0.00010947,2]
[345023723,1733934640516,-596.962,0.00010947,2]
[345023724,1733934640529,-1895.0,0.00010947,2]
[345023725,1733934640538,-1253.0,0.00010947,2]
[345023726,1733934640547,-3763.0,0.00010947,2]
[345023727,1733934640557,-817.0,0.00010947,2]
[345023728,1733934640566,-3629.0,0.00010947,2]
[345023729,1733934640575,-670.623,0.00010947,2]
[345023730,1733934640584,-931.0,0.00010947,2]
[345023731,1733934640593,-628.631,0.00010947,2]
[345023732,1733934640603,-634.0,0.00010947,2]
[345023734,1733934640613,-150.0,0.00010947,2]
[345023735,1733934640623,-171.816,0.00010947,2]
[345023737,1733934640633,-1167.0,0.00010947,2]
[345023739,1733934640644,-2006.0,0.00010947,2]
[345023741,1733934640654,-180.62145903,0.00010947,2]
[345023743,1733934640663,-500.0,0.00010955,2]
[345023745,1733934640672,-500.0,0.00010955,2]
[345023747,1733934640682,-500.0,0.00010955,2]
[345023749,1733934640692,-500.0,0.00010955,2]
[345023751,1733934640701,-605.1118194,0.00010955,2]
[345023753,1733934640710,-500.0,0.00010955,2]
[345023755,1733934640719,-512.89030705,0.00010955,2]
[345023757,1733934640729,-195.10172072,0.00010955,2]
[345023759,1733934640738,-500.0,0.00010955,2]
[345023761,1733934640747,-500.0,0.00010955,2]
[345023763,1733934640759,-500.0,0.00010955,2]
[345023766,1733934640768,-500.0,0.00010955,2]
[345023768,1733934640777,-500.0,0.00010955,2]
[345023770,1733934640787,-216.86771957,0.00010955,2]
[345023772,1733934640796,-185.62146626,0.00010955,2]
[345023774,1733934640806,-77162.90376949,0.00010956,2]
[345023800,1733934641428,-1510.6582197,0.00010956,2]
[345023801,1733934641440,-363.774,0.00010956,2]
[345023802,1733934641459,-492.41298035,0.00010956,2]
[345023810,1733934643268,-6786.43016779,0.00010956,2]
[345023811,1733934643280,-273.30552,0.00010956,2]
[345023812,1733934643292,-1106.91956519,0.00010956,2]
[345023813,1733934643324,-4856.00000794,0.00010956,2]
[345023814,1733934643336,-50475.8444239,0.00010956,2]
[345023815,1733934643386,-22491.7547035,0.00010956,2]
[345023816,1733934643397,-300.0,0.00010956,2]
[345023817,1733934643444,-7762.6,0.00010956,2]
[345023818,1733934643455,-823.45974905,0.00010956,2]
[345023819,1733934643467,-516.58320077,0.00010956,2]
[345023820,1733934643505,-931.13278959,0.00010956,2]
[345023821,1733934643521,-8087.0735218,0.00010956,2]
[345023822,1733934643566,-5541.732,0.00010956,2]
[345023823,1733934643578,-1996.23677394,0.00010956,2]
[345023824,1733934643626,-690.24699102,0.00010956,2]
[345023841,1733934646153,-636.316,0.00010904,2]
[345023844,1733934646163,-3202.41018479,0.00010956,2]
[345023852,1733934646213,-7317.74802,0.00010956,2]
[345023854,1733934646224,-10100.0,0.00010956,2]
[345023856,1733934646235,-441.64,0.00010956,2]
[345023861,1733934646276,-4855.77866,0.00010956,2]
[345023864,1733934646288,-1914.34123999,0.00010956,2]
[345023866,1733934646300,-3214.35,0.00010956,2]
[345023868,1733934646312,-5867.0,0.00010956,2]
[345023918,1733934646848,-3756.07470389,0.00010956,2]
[345023919,1733934647023,-12638.9952,0.00010956,2]
[345023920,1733934647791,-100151.12325079,0.00010956,2]
[345023921,1733934647803,-301838.94087057,0.00010956,2]
[345023922,1733934647814,-3036.06,0.00010956,2]
[345023923,1733934647825,-34714.80941762,0.00010956,2]
[345023924,1733934647836,-16632.0422233,0.00010956,2]
[345023925,1733934647848,-28649.4714281,0.00010956,2]
[345023926,1733934786752,71592.11745014,0.000122,15]
[345023927,1733934807801,4004.26879819,9.6e-05,2]
[345023928,1733934903368,155.0,9.6e-05,30]
[345023929,1733934950969,1249.42,8.219e-05,2]
[345023930,1733935202946,155.0,9.6e-05,30]
[345023997,1733935503333,4.56505486,9.6e-05,30]
[345023998,1733935503359,151.76789778,9.6e-05,30]
[345023999,1733935527561,1500.0,8.438e-05,2]
[345024000,1733935527597,500.0,8.438e-05,2]
[345024002,1733935574306,4000.0,8.438e-05,2]
[345024004,1733935709782,13047.85122995,0.0002,120]
[345024028,1733935832317,-494.30163018,9.668e-05,2]
[345024029,1733935832371,-505.69836982,9.668e-05,2]
[345024030,1733935832381,-250.0,9.776e-05,2]
[345024031,1733935832390,-30.97952255,9.807e-05,2]
[345024032,1733935832428,-269.02047745,9.807e-05,2]
[345024033,1733935832437,-192.644615,9.808e-05,2]
[345024034,1733935832447,-500.0,9.808e-05,2]
[345024035,1733935832456,-1500.0,9.808e-05,2]
[345024036,1733935832465,-4000.0,9.808e-05,2]
[345024037,1733935832474,-255.73,9.839e-05,2]
[345024038,1733935832483,-1056.0,9.842e-05,2]
[345024039,1733935832495,-250.0,9.856e-05,2]
[345024040,1733935832504,-854.93,9.909e-05,2]
[345024041,1733935832514,-250.0,9.912e-05,2]
[345024042,1733935832523,-16100.67182305,9.914e-05,2]
[345024043,1733935835470,-1001.47,9.914e-05,2]
[345024044,1733935835533,-6797.85817695,9.914e-05,2]
[345024045,1733935835544,-200.0,9.947e-05,2]
[345024046,1733935835554,-835.63,9.958e-05,2]
[345024047,1733935835564,-166.61,0.00010326,2]
[345024048,1733935835573,-835.63,0.00010327,2]
[345024049,1733935835583,-1056.0,0.0001036,2]
[345024050,1733935835593,-150.0,0.00010474,2]
[345024051,1733935835603,-4935.77182305,0.00010475,2]
[345024052,1733935835615,-926.5,0.00010475,2]
[345024053,1733935835626,-914.47,0.00010475,2]
[345024054,1733935835698,-2319.96817695,0.00010475,2]
[345024055,1733935835708,-999.99,0.00010475,2]
[345024056,1733935835717,-9999.99,0.00010475,2]
[345024057,1733935835728,-299.99,0.00010475,2]
[345024058,1733935835739,-4809.31860642,0.00010475,2]
[345024059,1733935835755,-955.21139358,0.00010475,2]
[345024060,1733935835765,-150.99,0.00010475,2]
[345024061,1733935835775,-2419.0,0.00010524,2]
[345024062,1733935835784,-314.79860642,0.0001055,2]
[345024063,1733935835796,-311.75239358,0.0001055,2]
[345024064,1733935835807,-835.63,0.00010695,2]
[345024065,1733935835817,-202.46240047,0.00010695,2]
[345024068,1733935835829,-550.95759953,0.00010695,2]
[345024069,1733935835838,-531.9,0.00010695,2]
[345024072,1733935835848,-150.99,0.00010695,2]
[345024073,1733935835858,-326.77,0.00010695,2]
[345024075,1733935835867,-277.17,0.00010695,2]
[345024077,1733935835877,-150.0,0.00010828,2]
[345024079,1733935835891,-870.5704,0.00010833,2]
[345024081,1733935835900,-2292.87406,0.0001085,2]
[345024083,1733935835910,-18711.55219047,0.0001085,2]
[345024099,1733935836156,-2210.61080953,0.0001085,2]
[345024101,1733935836167,-5000.0,0.00010856,2]
[345024103,1733935836176,-175.26160338,0.00010858,2]
[345024105,1733935836186,-160.78684334,0.00010858,2]
[345024107,1733935836195,-1000.0,0.00010877,2]
[345024109,1733935836204,-175.26160334,0.00010894,2]
[345024111,1733935836214,-1581.96356991,0.000109,2]
[345024113,1733935836223,-305.67873414,0.000109,2]
[345024115,1733935836232,-305.67873399,0.000109,2]
[345024117,1733935836241,-305.67873399,0.000109,2]
[345024119,1733935836254,-305.67873399,0.000109,2]
[345024121,1733935836263,-305.67873399,0.000109,2]
[345024122,1733935836272,-305.67873399,0.000109,2]
[345024124,1733935836281,-305.67873399,0.00010901,2]
[345024127,1733935836291,-1056.0,0.00010905,2]
[345024128,1733935836301,-305.67873399,0.00010909,2]
[345024130,1733935836311,-305.67873399,0.00010917,2]
[345024132,1733935836321,-305.67873399,0.00010924,2]
[345024133,1733935836331,-175.26160334,0.00010929,2]
[345024134,1733935836340,-160.78684332,0.00010929,2]
[345024135,1733935836350,-500.0,0.00010932,2]
[345024136,1733935836360,-305.67873399,0.00010932,2]
[345024137,1733935836379,-150.0,0.00010933,2]
[345024138,1733935836391,-755.658,0.00010933,2]
[345024139,1733935836402,-1895.0,0.00010933,2]
[345024140,1733935836412,-1252.0,0.00010933,2]
[345024141,1733935836422,-817.0,0.00010933,2]
[345024142,1733935836433,-3763.0,0.00010933,2]
[345024143,1733935836442,-3263.871,0.00010933,2]
[345024144,1733935836452,-535.0,0.00010933,2]
[345024145,1733935836462,-931.0,0.00010933,2]
[345024146,1733935836473,-150.203,0.00010933,2]
[345024147,1733935836483,-150.0,0.00010933,2]
[345024148,1733935836493,-2842.518,0.00010941,2]
[345024149,1733935836505,-174.663,0.00010941,2]
[345024150,1733935836515,-153.0,0.00010941,2]
[345024151,1733935836525,-153.0,0.00010941,2]
[345024152,1733935836535,-153.0,0.00010941,2]
[345024153,1733935836545,-153.0,0.00010941,2]
[345024154,1733935836555,-153.0,0.00010941,2]
[345024155,1733935836566,-153.0,0.00010941,2]
[345024156,1733935836576,-237.03270976,0.00010946,2]
[345024157,1733935836586,-1930.52610736,0.0001095,2]
[345024158,1733935836600,-29036.18349255,0.0001095,2]
[345024171,1733935838373,-1000.0,0.000109,2]
[345024172,1733935838383,-32860.34562148,0.0001095,2]
[345024173,1733935838396,-7454.82356919,0.0001095,2]
[345024174,1733935838408,-7721.754471,0.0001095,2]
[345024175,1733935838437,-643.38944898,0.0001095,2]
[345024176,1733935838452,-284.0,0.0001095,2]
[345024177,1733935838514,-400.0,0.0001095,2]
[345024178,1733935838586,-463.4202856,0.0001095,2]
[345024179,1733935838620,-169205.55700384,0.0001095,2]
[345024180,1733935838629,-996.78,0.00010956,2]
[345024181,1733935838639,-559648.92931332,0.00010956,2]
[345024182,1733935838650,-831.0,0.00010957,2]
[345024183,1733935838659,-337620.65771047,0.00010957,2]
[345024184,1733935838668,-500.0,0.00010958,2]
[345024185,1733935838679,-500.0,0.00010958,2]
[345024186,1733935838689,-500.0,0.00010958,2]
[345024187,1733935838699,-500.0,0.00010958,2]
[345024188,1733935838710,-500.0,0.00010958,2]
[345024189,1733935838721,-500.0,0.00010958,2]
[345024190,1733935838731,-502.46732222,0.00010958,2]
[345024191,1733935838741,-500.69043139,0.00010958,2]
[345024192,1733935838755,-418.94214029,0.00010958,2]
[345024193,1733935838765,-545.46430334,0.00010958,2]
[345024194,1733935838775,-574.11,0.00010958,2]
[345024195,1733935838784,-574.11,0.00010958,2]
[345024196,1733935838794,-574.11,0.00010958,2]
[345024197,1733935838804,-574.11,0.00010958,2]
[345024198,1733935838814,-574.11,0.00010958,2]
[345024199,1733935838823,-574.11,0.00010958,2]
[345024200,1733935838833,-574.11,0.00010958,2]
[345024201,1733935838843,-574.11,0.00010958,2]
[345024202,1733935838853,-591.79,0.00010958,2]
[345024203,1733935838863,-500.0,0.00010958,2]
[345024204,1733935838873,-500.0,0.00010958,2]
[345024205,1733935838885,-500.0,0.00010958,2]
[345024206,1733935838896,-500.0,0.00010958,2]
[345024207,1733935838905,-500.0,0.00010958,2]
[345024208,1733935838915,-500.0,0.00010958,2]
[345024209,1733935838926,-500.0,0.00010958,2]
[345024210,1733935838936,-500.0,0.00010958,2]
[345024211,1733935838945,-500.0,0.00010958,2]
[345024212,1733935838955,-500.0,0.00010958,2]
[345024213,1733935838966,-500.0,0.00010958,2]
[345024214,1733935838975,-500.0,0.00010958,2]
[345024215,1733935838985,-500.0,0.00010958,2]
[345024216,1733935838994,-500.0,0.00010958,2]
[345024217,1733935839008,-500.0,0.00010958,2]
[345024218,1733935839017,-500.0,0.00010958,2]
[345024219,1733935839027,-500.0,0.00010958,2]
[345024220,1733935839037,-500.0,0.00010958,2]
[345024221,1733935839047,-500.0,0.00010958,2]
[345024222,1733935839057,-500.36964477,0.00010958,2]
[345024223,1733935839066,-518.39926526,0.00010958,2]
[345024224,1733935839075,-500.0,0.00010958,2]
[345024225,1733935839085,-500.0,0.00010958,2]
[345024226,1733935839094,-500.0,0.00010958,2]
[345024227,1733935839104,-500.0,0.00010958,2]
[345024228,1733935839114,-500.0,0.00010958,2]
[345024229,1733935839123,-500.0,0.00010958,2]
[345024230,1733935839133,-500.0,0.00010958,2]
[345024231,1733935839142,-500.0,0.00010958,2]
[345024232,1733935839152,-500.0,0.00010958,2]
[345024233,1733935839162,-501.67550822,0.00010958,2]
[345024235,1733935839175,-500.0,0.00010958,2]
[345024236,1733935839184,-500.0,0.00010958,2]
[345024238,1733935839194,-500.0,0.00010958,2]
[345024240,1733935839203,-500.0,0.00010958,2]
[345024241,1733935839213,-500.0,0.00010958,2]
[345024242,1733935839222,-500.0,0.00010958,2]
[345024243,1733935839232,-500.0,0.00010958,2]
[345024244,1733935839242,-500.0,0.00010958,2]
[345024245,1733935839258,-500.0,0.00010958,2]
[345024246,1733935839268,-500.0,0.00010958,2]
[345024247,1733935839278,-616.54886014,0.00010958,2]
[345024248,1733935839288,-500.0,0.00010958,2]
[345024249,1733935839297,-500.0,0.00010958,2]
[345024250,1733935839307,-500.0,0.00010958,2]
[345024251,1733935839317,-500.0,0.00010958,2]
[345024252,1733935839327,-500.0,0.00010958,2]
[345024253,1733935839336,-500.0,0.00010958,2]
[345024254,1733935839346,-500.0,0.00010958,2]
[345024255,1733935839356,-500.0,0.00010958,2]
[345024256,1733935839365,-500.0,0.00010958,2]
[345024257,1733935839375,-500.0,0.00010958,2]
[345024258,1733935839385,-500.0,0.00010958,2]
[345024259,1733935839395,-500.0,0.00010958,2]
[345024260,1733935839404,-504.55068799,0.00010958,2]
[345024261,1733935839413,-500.0,0.00010958,2]
[345024262,1733935839423,-500.0,0.00010958,2]
[345024263,1733935839433,-461.25802988,0.00010958,2]
[345024264,1733935839443,-500.0,0.00010958,2]
[345024265,1733935839452,-502.96317506,0.00010958,2]
[345024266,1733935839461,-574.40304054,0.00010958,2]
[345024267,1733935839471,-592.85,0.00010958,2]
[345024268,1733935839480,-500.0,0.00010958,2]
[345024269,1733935839490,-173.5500382,0.00010958,2]
[345024270,1733935839502,-500.0,0.00010958,2]
[345024271,1733935839512,-500.0,0.00010958,2]
[345024272,1733935839521,-500.0,0.00010958,2]
[345024273,1733935839531,-500.0,0.00010958,2]
[345024274,1733935839540,-500.0,0.00010958,2]
[345024275,1733935839551,-500.0,0.00010958,2]
[345024276,1733935839560,-500.0,0.00010958,2]
[345024277,1733935839570,-500.0,0.00010958,2]
[345024278,1733935839579,-500.0,0.00010958,2]
[345024279,1733935839588,-500.0,0.00010958,2]
[345024280,1733935839598,-500.0,0.00010958,2]
[345024281,1733935839607,-500.0,0.00010958,2]
[345024282,1733935839617,-500.0,0.00010958,2]
[345024283,1733935839627,-500.0,0.00010958,2]
[345024284,1733935839636,-240.80806062,0.00010958,2]
[345024285,1733935839645,-500.0,0.00010958,2]
[345024286,1733935839655,-500.0,0.00010958,2]
[345024287,1733935839665,-500.0,0.00010958,2]
[345024288,1733935839674,-500.0,0.00010958,2]
[345024289,1733935839684,-420.3875769,0.00010958,2]
[345024290,1733935839693,-500.0,0.00010958,2]
[345024291,1733935839703,-500.0,0.00010958,2]
[345024292,1733935839712,-500.0,0.00010958,2]
[345024293,1733935839722,-500.0,0.00010958,2]
[345024294,1733935839731,-220.54185998,0.00010958,2]
[345024295,1733935839741,-500.0,0.00010958,2]
[345024296,1733935839753,-500.0,0.00010958,2]
[345024297,1733935839762,-500.0,0.00010958,2]
[345024298,1733935839772,-500.0,0.00010958,2]
[345024299,1733935839782,-500.0,0.00010958,2]
[345024300,1733935839791,-500.0,0.00010958,2]
[345024301,1733935839800,-170.40650359,0.00010958,2]
[345024302,1733935839810,-500.0,0.00010958,2]
[345024303,1733935839820,-500.0,0.00010958,2]
[345024304,1733935839829,-304.0766307,0.00010958,2]
[345024305,1733935839839,-500.0,0.00010958,2]
[345024306,1733935839850,-500.0,0.00010958,2]
[345024307,1733935839859,-500.0,0.00010958,2]
[345024308,1733935839869,-500.0,0.00010958,2]
[345024309,1733935839879,-500.0,0.00010958,2]
[345024310,1733935839895,-500.0,0.00010958,2]
[345024311,1733935839905,-170.48611502,0.00010958,2]
[345024312,1733935839914,-500.0,0.00010958,2]
[345024313,1733935839924,-500.0,0.00010958,2]
[345024314,1733935839934,-500.0,0.00010958,2]
[345024315,1733935839943,-500.0,0.00010958,2]
[345024316,1733935839953,-500.0,0.00010958,2]
[345024317,1733935839963,-500.0,0.00010958,2]
[345024318,1733935839975,-251.26,0.00010958,2]
[345024319,1733935839985,-500.0,0.00010958,2]
[345024320,1733935839994,-538.87,0.00010958,2]
[345024321,1733935840006,-500.0,0.00010958,2]
[345024322,1733935840016,-409.78,0.00010958,2]
[345024323,1733935840026,-500.0,0.00010958,2]
[345024324,1733935840035,-500.0,0.00010958,2]
[345024325,1733935840045,-500.0,0.00010958,2]
[345024326,1733935840054,-507.96,0.00010958,2]
[345024327,1733935840064,-500.0,0.00010958,2]
[345024328,1733935840073,-500.0,0.00010958,2]
[345024329,1733935840083,-255.72,0.00010958,2]
[345024330,1733935840093,-500.0,0.00010958,2]
[345024331,1733935840103,-500.0,0.00010958,2]
[345024332,1733935840112,-500.0,0.00010958,2]
[345024333,1733935840122,-500.0,0.00010958,2]
[345024334,1733935840132,-500.0,0.00010958,2]
[345024335,1733935840142,-273.77,0.00010958,2]
[345024337,1733935840152,-500.0,0.00010958,2]
[345024339,1733935840161,-607.91,0.00010958,2]
[345024341,1733935840171,-336.6973529,0.00010958,2]
[345024342,1733935840180,-557.583073,0.00010958,2]
[345024343,1733935840189,-500.0,0.00010958,2]
[345024344,1733935840199,-500.0,0.00010958,2]
[345024346,1733935840208,-326.05,0.00010958,2]
[345024347,1733935840219,-500.0,0.00010958,2]
[345024348,1733935840228,-500.0,0.00010958,2]
[345024349,1733935840237,-500.0,0.00010958,2]
[345024350,1733935840249,-500.0,0.00010958,2]
[345024351,1733935840258,-500.0,0.00010958,2]
[345024353,1733935840267,-500.0,0.00010958,2]
[345024354,1733935840277,-160.92,0.00010958,2]
[345024356,1733935840286,-500.0,0.00010958,2]
[345024357,1733935840295,-500.0,0.00010958,2]
[345024358,1733935840305,-500.0,0.00010958,2]
[345024359,1733935840314,-500.0,0.00010958,2]
[345024360,1733935840323,-353.66446774,0.00010958,2]
[345024361,1733935840333,-500.0,0.00010958,2]
[345024362,1733935840342,-500.0,0.00010958,2]
[345024363,1733935840352,-500.0,0.00010958,2]
[345024364,1733935840362,-500.0,0.00010958,2]
[345024365,1733935840372,-500.0,0.00010958,2]
[345024366,1733935840382,-500.0,0.00010958,2]
[345024367,1733935840391,-500.0,0.00010958,2]
[345024368,1733935840401,-500.0,0.00010958,2]
[345024369,1733935840410,-500.0,0.00010958,2]
[345024370,1733935840419,-500.0,0.00010958,2]
[345024371,1733935840429,-500.8290296,0.00010958,2]
[345024372,1733935840438,-500.0,0.00010958,2]
[345024373,1733935840447,-500.0,0.00010958,2]
[345024374,1733935840456,-500.0,0.00010958,2]
[345024375,1733935840466,-500.0,0.00010958,2]
[345024376,1733935840475,-500.0,0.00010958,2]
[345024377,1733935840484,-502.77444288,0.00010958,2]
[345024378,1733935840494,-500.0,0.00010958,2]
[345024379,1733935840508,-500.0,0.00010958,2]
[345024380,1733935840517,-500.0,0.00010958,2]
[345024381,1733935840527,-500.0,0.00010958,2]
[345024382,1733935840537,-500.0,0.00010958,2]
[345024383,1733935840547,-500.0,0.00010958,2]
[345024384,1733935840556,-500.0,0.00010958,2]
[345024385,1733935840566,-500.0,0.00010958,2]
[345024386,1733935840576,-637.47386019,0.00010958,2]
[345024387,1733935840586,-267.73984155,0.00010958,2]
[345024388,1733935840595,-337.89920597,0.00010958,2]
[345024389,1733935840605,-260.8265216,0.00010958,2]
[345024390,1733935840615,-500.0,0.00010958,2]
[345024391,1733935840627,-500.0,0.00010958,2]
[345024392,1733935840637,-500.0,0.00010958,2]
[345024393,1733935840646,-500.0,0.00010958,2]
[345024394,1733935840656,-500.0,0.00010958,2]
[345024395,1733935840665,-500.0,0.00010958,2]
[345024396,1733935840675,-500.0,0.00010958,2]
[345024397,1733935840685,-500.0,0.00010958,2]
[345024398,1733935840695,-500.0,0.00010958,2]
[345024399,1733935840704,-500.0,0.00010958,2]
[345024400,1733935840714,-500.0,0.00010958,2]
[345024402,1733935840723,-392.07,0.00010958,2]
[345024404,1733935840733,-500.0,0.00010958,2]
[345024405,1733935840742,-500.0,0.00010958,2]
[345024406,1733935840756,-500.0,0.00010958,2]
[345024407,1733935840765,-500.0,0.00010958,2]
[345024408,1733935840775,-500.0,0.00010958,2]
[345024409,1733935840785,-500.0,0.00010958,2]
[345024410,1733935840795,-500.0,0.00010958,2]
[345024411,1733935840805,-500.0,0.00010958,2]
[345024412,1733935840814,-500.0,0.00010958,2]
[345024413,1733935840824,-1210.33,0.00010958,2]
[345024414,1733935840835,-1210.33,0.00010958,2]
[345024415,1733935840845,-500.0,0.00010958,2]
[345024416,1733935840854,-1210.33,0.00010958,2]
[345024417,1733935840864,-500.0,0.00010958,2]
[345024418,1733935840873,-1210.33,0.00010958,2]
[345024419,1733935840885,-1210.33,0.00010958,2]
[345024420,1733935840895,-491.000005,0.00010958,2]
[345024421,1733935840908,-500.0,0.00010958,2]
[345024422,1733935840918,-500.0,0.00010958,2]
[345024423,1733935840928,-500.0,0.00010958,2]
[345024424,1733935840939,-500.0,0.00010958,2]
[345024425,1733935840949,-500.0,0.00010958,2]
[345024426,1733935840960,-500.0,0.00010958,2]
[345024427,1733935840970,-500.0,0.00010958,2]
[345024428,1733935840980,-500.0,0.00010958,2]
[345024429,1733935840990,-500.0,0.00010958,2]
[345024430,1733935841004,-500.45347839,0.00010958,2]
[345024431,1733935841016,-500.0,0.00010958,2]
[345024432,1733935841026,-500.0,0.00010958,2]
[345024433,1733935841039,-500.0,0.00010958,2]
[345024434,1733935841050,-390.51977119,0.00010958,2]
[345024435,1733935841060,-500.0,0.00010958,2]
[345024436,1733935841070,-500.0,0.00010958,2]
[345024437,1733935841080,-219.48,0.00010958,2]
[345024438,1733935841090,-3990.62,0.00010958,2]
[345024439,1733935841100,-3990.62,0.00010958,2]
[345024440,1733935841110,-3990.62,0.00010958,2]
[345024441,1733935841120,-3990.62,0.00010958,2]
[345024442,1733935841131,-3990.62,0.00010958,2]
[345024443,1733935841141,-500.0,0.00010958,2]
[345024444,1733935841152,-500.0,0.00010958,2]
[345024445,1733935841162,-500.0,0.00010958,2]
[345024446,1733935841172,-500.0,0.00010958,2]
[345024447,1733935841182,-500.0,0.00010958,2]
[345024448,1733935841191,-500.0,0.00010958,2]
[345024449,1733935841201,-500.0,0.00010958,2]
[345024450,1733935841211,-500.0,0.00010958,2]
[345024451,1733935841221,-500.0,0.00010958,2]
[345024452,1733935841232,-500.0,0.00010958,2]
[345024453,1733935841242,-500.0,0.00010958,2]
[345024454,1733935841257,-500.0,0.00010958,2]
[345024455,1733935841268,-495.74,0.00010958,2]
[345024456,1733935841278,-500.0,0.00010958,2]
[345024457,1733935841288,-500.0,0.00010958,2]
[345024458,1733935841298,-500.0,0.00010958,2]
[345024459,1733935841307,-500.0,0.00010958,2]
[345024460,1733935841317,-500.0,0.00010958,2]
[345024461,1733935841327,-1445.81,0.00010958,2]
[345024462,1733935841337,-1445.81,0.00010958,2]
[345024463,1733935841347,-1445.81,0.00010958,2]
[345024464,1733935841357,-1445.81,0.00010958,2]
[345024465,1733935841366,-1445.81,0.00010958,2]
[345024466,1733935841376,-927.32,0.00010958,2]
[345024467,1733935841385,-927.32,0.00010958,2]